[Event "Titled Tuesday Blitz October 31 Late 2023"]
[White "Szpar, Milosz"]
[Black "Bok, Benjamin"]
[WhiteFideId "1184989"]
[BlackFideId "1017063"]
[WhiteElo "2758"]
[BlackElo "2960"]
[Result "1/2-1/2"]
[Round "4"]
[TimeControl "180+1"]
[Date "2023.10.31"]
[WhiteClock "0:00:10"]
[BlackClock "0:00:04"]
[Board "8"]

1. Nf3 {[%clk 0:03:00]}  d5 {[%clk 0:03:00]} 2. e3 {[%clk 0:03:00]}  Nf6 {[%clk 0:03:00]} 3. c4 {[%clk 0:03:01]}  c6 {[%clk 0:03:00]} 4. Nc3 {[%clk 0:03:01]}  e6 {[%clk 0:03:01]} 5. b3 {[%clk 0:03:00]}  Bd6 {[%clk 0:03:01]} 6. Bb2 {[%clk 0:03:01]}  O-O {[%clk 0:03:02]} 7. Be2 {[%clk 0:03:00]}  Nbd7 {[%clk 0:03:00]} 8. Rg1 {[%clk 0:02:44]}  e5 {[%clk 0:02:54]} 9. cxd5 {[%clk 0:02:38]}  cxd5 {[%clk 0:02:54]} 10. Nb5 {[%clk 0:02:16]}  Bb8 {[%clk 0:02:54]} 11. Ba3 {[%clk 0:02:17]}  e4 {[%clk 0:02:38]} 12. Nfd4 {[%clk 0:02:13]}  Bxh2 {[%clk 0:02:32]} 13. Rh1 {[%clk 0:02:13]}  Be5 {[%clk 0:02:33]} 14. Rc1 {[%clk 0:01:58]}  a6 {[%clk 0:02:04]} 15. Bxf8 {[%clk 0:01:53]}  Nxf8 {[%clk 0:02:02]} 16. Nc3 {[%clk 0:01:53]}  Bxd4 {[%clk 0:01:23]} 17. exd4 {[%clk 0:01:54]}  Ne6 {[%clk 0:01:23]} 18. d3 {[%clk 0:01:55]}  Nxd4 {[%clk 0:01:04]} 19. dxe4 {[%clk 0:01:55]}  dxe4 {[%clk 0:01:05]} 20. Qd2 {[%clk 0:01:55]}  Be6 {[%clk 0:00:55]} 21. Rd1 {[%clk 0:01:53]}  Nc6 {[%clk 0:00:54]} 22. Qxd8+ {[%clk 0:01:53]}  Nxd8 {[%clk 0:00:54]} 23. f3 {[%clk 0:01:45]}  exf3 {[%clk 0:00:51]} 24. Bxf3 {[%clk 0:01:46]}  Nc6 {[%clk 0:00:51]} 25. Kf2 {[%clk 0:01:37]}  Ng4+ {[%clk 0:00:49]} 26. Kg3 {[%clk 0:01:36]}  Nge5 {[%clk 0:00:43]} 27. Bd5 {[%clk 0:01:25]}  Bxd5 {[%clk 0:00:41]} 28. Rxd5 {[%clk 0:01:18]}  f6 {[%clk 0:00:34]} 29. Rhd1 {[%clk 0:01:13]}  Kf7 {[%clk 0:00:32]} 30. Ne4 {[%clk 0:01:09]}  Kg6 {[%clk 0:00:31]} 31. Nc5 {[%clk 0:01:06]}  b6 {[%clk 0:00:25]} 32. Ne6 {[%clk 0:01:05]}  Re8 {[%clk 0:00:17]} 33. Nf4+ {[%clk 0:01:06]}  Kf7 {[%clk 0:00:17]} 34. Rd6 {[%clk 0:01:05]}  b5 {[%clk 0:00:11]} 35. Rc1 {[%clk 0:01:04]}  Ne7 {[%clk 0:00:09]} 36. Rc7 {[%clk 0:00:59]}  Kg8 {[%clk 0:00:05]} 37. Rxa6 {[%clk 0:00:56]}  Nf5+ {[%clk 0:00:04]} 38. Kh3 {[%clk 0:00:55]}  h6 {[%clk 0:00:04]} 39. Nh5 {[%clk 0:00:47]}  Rd8 {[%clk 0:00:03]} 40. Nf4 {[%clk 0:00:31]}  Rd4 {[%clk 0:00:02]} 41. g3 {[%clk 0:00:27]}  Rd2 {[%clk 0:00:03]} 42. Raa7 {[%clk 0:00:14]}  Rb2 {[%clk 0:00:02]} 43. Nh5 {[%clk 0:00:10]}  Re2 {[%clk 0:00:01]} 44. Nxg7 {[%clk 0:00:09]}  Ne3 {[%clk 0:00:02]} 45. Rc8+ {[%clk 0:00:09]}  Kh7 {[%clk 0:00:02]} 46. Nf5+ {[%clk 0:00:06]}  Kg6 {[%clk 0:00:02]} 47. Nxe3 {[%clk 0:00:06]}  Rxe3 {[%clk 0:00:03]} 48. Rg8+ {[%clk 0:00:06]}  Kf5 {[%clk 0:00:03]} 49. a4 {[%clk 0:00:05]}  bxa4 {[%clk 0:00:03]} 50. bxa4 {[%clk 0:00:06]}  h5 {[%clk 0:00:04]} 51. a5 {[%clk 0:00:07]}  Ng4 {[%clk 0:00:04]} 52. Rag7 {[%clk 0:00:06]}  Re2 {[%clk 0:00:04]} 53. Rxg4 {[%clk 0:00:06]}  hxg4+ {[%clk 0:00:05]} 54. Rxg4 {[%clk 0:00:06]}  Ra2 {[%clk 0:00:06]} 55. Rh4 {[%clk 0:00:07]}  Kg5 {[%clk 0:00:05]} 56. Rg4+ {[%clk 0:00:07]}  Kh5 {[%clk 0:00:05]} 57. Rh4+ {[%clk 0:00:06]}  Kg6 {[%clk 0:00:06]} 58. Rg4+ {[%clk 0:00:06]}  Kf7 {[%clk 0:00:06]} 59. Rb4 {[%clk 0:00:05]}  Rxa5 {[%clk 0:00:06]} 60. Rh4 {[%clk 0:00:05]}  Kg6 {[%clk 0:00:07]} 61. Rf4 {[%clk 0:00:06]}  Ra1 {[%clk 0:00:06]} 62. Kg2 {[%clk 0:00:05]}  Ra2+ {[%clk 0:00:06]} 63. Kh3 {[%clk 0:00:06]}  Ra3 {[%clk 0:00:07]} 64. Rg4+ {[%clk 0:00:06]}  Kf7 {[%clk 0:00:07]} 65. Re4 {[%clk 0:00:06]}  Rb3 {[%clk 0:00:08]} 66. Rc4 {[%clk 0:00:07]}  Kg6 {[%clk 0:00:08]} 67. Ra4 {[%clk 0:00:07]}  f5 {[%clk 0:00:08]} 68. Ra6+ {[%clk 0:00:07]}  Kg5 {[%clk 0:00:08]} 69. Ra4 {[%clk 0:00:08]}  Rc3 {[%clk 0:00:09]} 70. Rf4 {[%clk 0:00:08]}  Rc1 {[%clk 0:00:09]} 71. Ra4 {[%clk 0:00:07]}  Rh1+ {[%clk 0:00:09]} 72. Kg2 {[%clk 0:00:08]}  Rc1 {[%clk 0:00:10]} 73. Rf4 {[%clk 0:00:07]}  Rb1 {[%clk 0:00:10]} 74. Rf2 {[%clk 0:00:07]}  Rb3 {[%clk 0:00:10]} 75. Rf4 {[%clk 0:00:07]}  Rc3 {[%clk 0:00:11]} 76. Rf2 {[%clk 0:00:07]}  Rc4 {[%clk 0:00:11]} 77. Rf3 {[%clk 0:00:07]}  Kg4 {[%clk 0:00:11]} 78. Rf2 {[%clk 0:00:07]}  Rd4 {[%clk 0:00:12]} 79. Kh2 {[%clk 0:00:06]}  Re4 {[%clk 0:00:10]} 80. Kg2 {[%clk 0:00:06]}  Ra4 {[%clk 0:00:10]} 81. Kh2 {[%clk 0:00:07]}  Rd4 {[%clk 0:00:06]} 82. Kg2 {[%clk 0:00:07]}  Rc4 {[%clk 0:00:06]} 83. Kh2 {[%clk 0:00:07]}  Rc3 {[%clk 0:00:07]} 84. Rf4+ {[%clk 0:00:07]}  Kg5 {[%clk 0:00:07]} 85. Kg2 {[%clk 0:00:07]}  Rc2+ {[%clk 0:00:07]} 86. Rf2 {[%clk 0:00:07]}  Rc1 {[%clk 0:00:08]} 87. Rf4 {[%clk 0:00:07]}  Rd1 {[%clk 0:00:09]} 88. Rf2 {[%clk 0:00:07]}  Rd4 {[%clk 0:00:09]} 89. Kh2 {[%clk 0:00:08]}  Kg4 {[%clk 0:00:09]} 90. Kg2 {[%clk 0:00:08]}  Rb4 {[%clk 0:00:09]} 91. Kh2 {[%clk 0:00:08]}  Rb3 {[%clk 0:00:05]} 92. Rf4+ {[%clk 0:00:08]}  Kg5 {[%clk 0:00:06]} 93. Kg2 {[%clk 0:00:09]}  Rb2+ {[%clk 0:00:06]} 94. Rf2 {[%clk 0:00:09]}  Rb1 {[%clk 0:00:06]} 95. Rf4 {[%clk 0:00:09]}  Rb3 {[%clk 0:00:05]} 96. Rf2 {[%clk 0:00:09]}  Rb4 {[%clk 0:00:05]} 97. Kh2 {[%clk 0:00:09]}  Rd4 {[%clk 0:00:05]} 98. Kg2 {[%clk 0:00:09]}  Kg4 {[%clk 0:00:06]} 99. Kh2 {[%clk 0:00:09]}  Rc4 {[%clk 0:00:05]} 100. Kg2 {[%clk 0:00:09]}  Ra4 {[%clk 0:00:04]} 101. Kh2 {[%clk 0:00:10]}  Rd4 {[%clk 0:00:04]} 1/2-1/2


[Site "https://www.chess.com"]

[Event "Titled Tuesday Blitz October 31 Late 2023"]
[White "Chigaev, Maksim"]
[Black "Darini, Pouria"]
[WhiteFideId "4108116"]
[BlackFideId "12502200"]
[WhiteElo "2943"]
[BlackElo "2755"]
[Result "1-0"]
[Round "4"]
[TimeControl "180+1"]
[Date "2023.10.31"]
[WhiteClock "0:00:14"]
[BlackClock "0:00:01"]
[Board "9"]

1. e4 {[%clk 0:03:00]}  c6 {[%clk 0:02:56]} 2. Nf3 {[%clk 0:02:55]}  d5 {[%clk 0:02:56]} 3. d3 {[%clk 0:02:56]}  g6 {[%clk 0:02:53]} 4. e5 {[%clk 0:02:56]}  Bg7 {[%clk 0:02:52]} 5. d4 {[%clk 0:02:57]}  f6 {[%clk 0:02:52]} 6. exf6 {[%clk 0:02:57]}  exf6 {[%clk 0:02:52]} 7. Bd3 {[%clk 0:02:55]}  Ne7 {[%clk 0:02:53]} 8. O-O {[%clk 0:02:54]}  O-O {[%clk 0:02:53]} 9. Re1 {[%clk 0:02:54]}  Bf5 {[%clk 0:02:52]} 10. b3 {[%clk 0:02:54]}  Bxd3 {[%clk 0:02:49]} 11. Qxd3 {[%clk 0:02:55]}  Nf5 {[%clk 0:02:40]} 12. Ba3 {[%clk 0:02:50]}  Re8 {[%clk 0:02:37]} 13. Nbd2 {[%clk 0:02:50]}  Na6 {[%clk 0:02:04]} 14. h4 {[%clk 0:02:25]}  Qa5 {[%clk 0:01:57]} 15. Bb2 {[%clk 0:01:59]}  Nc7 {[%clk 0:01:53]} 16. h5 {[%clk 0:01:50]}  Ne6 {[%clk 0:01:54]} 17. g3 {[%clk 0:01:50]}  Qb5 {[%clk 0:01:20]} 18. c4 {[%clk 0:01:37]}  dxc4 {[%clk 0:01:20]} 19. bxc4 {[%clk 0:01:36]}  Qa6 {[%clk 0:00:33]} 20. a4 {[%clk 0:01:31]}  Rad8 {[%clk 0:00:32]} 21. a5 {[%clk 0:01:18]}  Kf7 {[%clk 0:00:27]} 22. Nb3 {[%clk 0:01:10]}  Nd6 {[%clk 0:00:17]} 23. Rac1 {[%clk 0:00:55]}  b6 {[%clk 0:00:17]} 24. Nh4 {[%clk 0:00:48]}  f5 {[%clk 0:00:16]} 25. hxg6+ {[%clk 0:00:37]}  hxg6 {[%clk 0:00:17]} 26. d5 {[%clk 0:00:38]}  Bxb2 {[%clk 0:00:14]} 27. dxe6+ {[%clk 0:00:36]}  Kg7 {[%clk 0:00:13]} 28. e7 {[%clk 0:00:33]}  Rd7 {[%clk 0:00:09]} 29. Re6 {[%clk 0:00:31]}  Bxc1 {[%clk 0:00:08]} 30. Rxg6+ {[%clk 0:00:31]}  Kf7 {[%clk 0:00:08]} 31. Nxf5 {[%clk 0:00:20]}  Nxc4 {[%clk 0:00:03]} 32. Qxd7 {[%clk 0:00:17]}  Ne5 {[%clk 0:00:01]} 33. Qe6# {[%clk 0:00:14]} 1-0


[Site "https://www.chess.com"]

[Event "Titled Tuesday Blitz October 31 Late 2023"]
[White "Bauman_Guy"]
[Black "DopplerCharlotteDeWitte"]
[WhiteElo "2924"]
[BlackElo "2743"]
[Result "1/2-1/2"]
[Round "4"]
[TimeControl "180+1"]
[Date "2023.10.31"]
[WhiteClock "0:00:10"]
[BlackClock "0:00:02"]
[Board "11"]

1. e4 {[%clk 0:03:00]}  c5 {[%clk 0:02:59]} 2. Nf3 {[%clk 0:03:00]}  e6 {[%clk 0:03:00]} 3. d4 {[%clk 0:03:01]}  cxd4 {[%clk 0:03:01]} 4. Nxd4 {[%clk 0:03:02]}  Nf6 {[%clk 0:03:01]} 5. Nc3 {[%clk 0:03:02]}  Nc6 {[%clk 0:03:02]} 6. Ndb5 {[%clk 0:03:02]}  d6 {[%clk 0:03:02]} 7. Bf4 {[%clk 0:03:02]}  e5 {[%clk 0:03:03]} 8. Bg5 {[%clk 0:03:03]}  a6 {[%clk 0:03:04]} 9. Na3 {[%clk 0:03:03]}  b5 {[%clk 0:03:04]} 10. Bxf6 {[%clk 0:03:04]}  gxf6 {[%clk 0:03:04]} 11. Nd5 {[%clk 0:03:05]}  Bg7 {[%clk 0:03:04]} 12. g3 {[%clk 0:03:05]}  f5 {[%clk 0:02:48]} 13. Bg2 {[%clk 0:03:04]}  fxe4 {[%clk 0:02:49]} 14. Bxe4 {[%clk 0:03:05]}  O-O {[%clk 0:02:40]} 15. Ne3 {[%clk 0:03:03]}  d5 {[%clk 0:02:15]} 16. Bxd5 {[%clk 0:02:56]}  Bb7 {[%clk 0:02:14]} 17. c3 {[%clk 0:02:54]}  Qg5 {[%clk 0:02:03]} 18. h4 {[%clk 0:02:44]}  Qf6 {[%clk 0:01:57]} 19. Qf3 {[%clk 0:02:41]}  Qxf3 {[%clk 0:01:49]} 20. Bxf3 {[%clk 0:02:42]}  b4 {[%clk 0:01:46]} 21. Nb1 {[%clk 0:02:11]}  f5 {[%clk 0:01:33]} 22. O-O {[%clk 0:02:01]}  e4 {[%clk 0:01:32]} 23. Bg2 {[%clk 0:01:58]}  Rad8 {[%clk 0:01:26]} 24. a3 {[%clk 0:01:51]}  b3 {[%clk 0:00:57]} 25. a4 {[%clk 0:01:50]}  Ne5 {[%clk 0:00:45]} 26. Ra3 {[%clk 0:01:43]}  f4 {[%clk 0:00:42]} 27. gxf4 {[%clk 0:01:39]}  Rxf4 {[%clk 0:00:43]} 28. Rxb3 {[%clk 0:01:39]}  Bc6 {[%clk 0:00:39]} 29. Rb6 {[%clk 0:01:29]}  Rxh4 {[%clk 0:00:20]} 30. Na3 {[%clk 0:01:22]}  Bxa4 {[%clk 0:00:17]} 31. Rxa6 {[%clk 0:01:18]}  Bd7 {[%clk 0:00:17]} 32. Rd1 {[%clk 0:01:15]}  Rf8 {[%clk 0:00:14]} 33. Rad6 {[%clk 0:00:56]}  Bh3 {[%clk 0:00:14]} 34. Rd8 {[%clk 0:00:55]}  Nf3+ {[%clk 0:00:12]} 35. Bxf3 {[%clk 0:00:52]}  exf3 {[%clk 0:00:13]} 36. Nac4 {[%clk 0:00:45]}  Bh6 {[%clk 0:00:08]} 37. R1d4 {[%clk 0:00:38]}  Rxd4 {[%clk 0:00:05]} 38. Rxd4 {[%clk 0:00:34]}  Bg5 {[%clk 0:00:04]} 39. Kh2 {[%clk 0:00:32]}  Be6 {[%clk 0:00:04]} 40. Kg3 {[%clk 0:00:32]}  h5 {[%clk 0:00:03]} 41. Ne5 {[%clk 0:00:21]}  h4+ {[%clk 0:00:04]} 42. Rxh4 {[%clk 0:00:21]}  Bxh4+ {[%clk 0:00:04]} 43. Kxh4 {[%clk 0:00:22]}  Kg7 {[%clk 0:00:02]} 44. Kg3 {[%clk 0:00:21]}  Kf6 {[%clk 0:00:02]} 45. Nxf3 {[%clk 0:00:21]}  Rb8 {[%clk 0:00:03]} 46. b4 {[%clk 0:00:12]}  Rc8 {[%clk 0:00:03]} 47. Nd2 {[%clk 0:00:11]}  Ke5 {[%clk 0:00:02]} 48. c4 {[%clk 0:00:08]}  Kd4 {[%clk 0:00:02]} 49. Kf3 {[%clk 0:00:09]}  Kc3 {[%clk 0:00:02]} 50. Ne4+ {[%clk 0:00:07]}  Kxb4 {[%clk 0:00:03]} 51. Kf4 {[%clk 0:00:07]}  Bxc4 {[%clk 0:00:02]} 52. Nxc4 {[%clk 0:00:08]}  Rxc4 {[%clk 0:00:02]} 53. Ke5 {[%clk 0:00:08]}  Rc1 {[%clk 0:00:01]} 54. f4 {[%clk 0:00:09]}  Rf1 {[%clk 0:00:02]} 55. f5 {[%clk 0:00:10]}  Rxf5+ {[%clk 0:00:02]} 56. Kxf5 {[%clk 0:00:10]} 1/2-1/2


[Site "https://www.chess.com"]

[Event "Titled Tuesday Blitz October 31 Late 2023"]
[White "Kazakouski, Valery"]
[Black "ArtemDyachuk"]
[WhiteFideId "13507443"]
[WhiteElo "2883"]
[BlackElo "2642"]
[Result "1-0"]
[Round "4"]
[TimeControl "180+1"]
[Date "2023.10.31"]
[WhiteClock "0:00:12"]
[BlackClock "0:00:13"]
[Board "14"]

1. Nf3 {[%clk 0:03:00]}  d5 {[%clk 0:02:58]} 2. c4 {[%clk 0:03:01]}  c6 {[%clk 0:02:57]} 3. g3 {[%clk 0:03:00]}  Nf6 {[%clk 0:02:56]} 4. Bg2 {[%clk 0:03:00]}  Bf5 {[%clk 0:02:56]} 5. Qb3 {[%clk 0:03:00]}  Qc8 {[%clk 0:02:53]} 6. d3 {[%clk 0:02:59]}  h6 {[%clk 0:02:51]} 7. O-O {[%clk 0:02:57]}  e6 {[%clk 0:02:51]} 8. cxd5 {[%clk 0:02:57]}  exd5 {[%clk 0:02:48]} 9. Nc3 {[%clk 0:02:57]}  Nbd7 {[%clk 0:02:48]} 10. e4 {[%clk 0:02:54]}  dxe4 {[%clk 0:02:45]} 11. dxe4 {[%clk 0:02:54]}  Be6 {[%clk 0:02:45]} 12. Qc2 {[%clk 0:02:53]}  Nc5 {[%clk 0:02:41]} 13. Nd4 {[%clk 0:02:49]}  Bh3 {[%clk 0:02:39]} 14. e5 {[%clk 0:02:44]}  Bxg2 {[%clk 0:02:30]} 15. Kxg2 {[%clk 0:02:44]}  Nfd7 {[%clk 0:02:28]} 16. e6 {[%clk 0:02:39]}  Nxe6 {[%clk 0:01:53]} 17. Nxe6 {[%clk 0:02:38]}  fxe6 {[%clk 0:01:53]} 18. Qg6+ {[%clk 0:02:38]}  Ke7 {[%clk 0:01:53]} 19. Re1 {[%clk 0:02:31]}  Nf6 {[%clk 0:01:53]} 20. Bf4 {[%clk 0:02:25]}  Qd7 {[%clk 0:01:13]} 21. Rad1 {[%clk 0:02:22]}  Nd5 {[%clk 0:01:12]} 22. Nxd5+ {[%clk 0:01:58]}  cxd5 {[%clk 0:01:13]} 23. Re5 {[%clk 0:01:58]}  Re8 {[%clk 0:01:09]} 24. Rdxd5 {[%clk 0:01:05]}  Qxd5+ {[%clk 0:00:47]} 25. Rxd5 {[%clk 0:01:05]}  exd5 {[%clk 0:00:48]} 26. Qd6+ {[%clk 0:01:05]}  Kf7 {[%clk 0:00:48]} 27. Qxd5+ {[%clk 0:01:05]}  Re6 {[%clk 0:00:45]} 28. Qxb7+ {[%clk 0:01:05]}  Be7 {[%clk 0:00:45]} 29. Qxa7 {[%clk 0:01:05]}  Rc8 {[%clk 0:00:44]} 30. b4 {[%clk 0:01:00]}  Rc2 {[%clk 0:00:42]} 31. a4 {[%clk 0:00:54]}  Kg8 {[%clk 0:00:36]} 32. Qa8+ {[%clk 0:00:43]}  Kh7 {[%clk 0:00:34]} 33. Qd5 {[%clk 0:00:36]}  Ree2 {[%clk 0:00:32]} 34. Qd3+ {[%clk 0:00:35]}  Kg8 {[%clk 0:00:31]} 35. Be3 {[%clk 0:00:33]}  Bg5 {[%clk 0:00:12]} 36. Bb6 {[%clk 0:00:28]}  Red2 {[%clk 0:00:08]} 37. Qb3+ {[%clk 0:00:28]}  Kh8 {[%clk 0:00:07]} 38. a5 {[%clk 0:00:29]}  Ra2 {[%clk 0:00:05]} 39. b5 {[%clk 0:00:25]}  Rdb2 {[%clk 0:00:03]} 40. Qd5 {[%clk 0:00:25]}  Bf6 {[%clk 0:00:03]} 41. a6 {[%clk 0:00:23]}  Ra4 {[%clk 0:00:01]} 42. a7 {[%clk 0:00:22]}  Rba2 {[%clk 0:00:02]} 43. Be3 {[%clk 0:00:19]}  Bg5 {[%clk 0:00:01]} 44. Bxg5 {[%clk 0:00:17]}  hxg5 {[%clk 0:00:02]} 45. b6 {[%clk 0:00:18]}  g4 {[%clk 0:00:03]} 46. Qd8+ {[%clk 0:00:16]}  Kh7 {[%clk 0:00:03]} 47. Qd3+ {[%clk 0:00:17]}  g6 {[%clk 0:00:03]} 48. Qd7+ {[%clk 0:00:16]}  Kh6 {[%clk 0:00:02]} 49. Qc7 {[%clk 0:00:12]}  Re4 {[%clk 0:00:01]} 50. b7 {[%clk 0:00:11]}  Ree2 {[%clk 0:00:02]} 51. Qc1+ {[%clk 0:00:10]}  g5 {[%clk 0:00:02]} 52. Qf1 {[%clk 0:00:08]}  Kh5 {[%clk 0:00:02]} 53. b8=Q {[%clk 0:00:08]}  Re6 {[%clk 0:00:03]} 54. Qh8+ {[%clk 0:00:08]}  Rh6 {[%clk 0:00:03]} 55. Qxh6+ {[%clk 0:00:08]}  Kxh6 {[%clk 0:00:03]} 56. Qd1 {[%clk 0:00:07]}  Kh5 {[%clk 0:00:02]} 57. Qd4 {[%clk 0:00:06]}  Ra6 {[%clk 0:00:02]} 58. Qc5 {[%clk 0:00:06]}  Rc6 {[%clk 0:00:02]} 59. Qb5 {[%clk 0:00:05]}  Ra6 {[%clk 0:00:02]} 60. Qe8+ {[%clk 0:00:05]}  Kh6 {[%clk 0:00:01]} 61. a8=Q {[%clk 0:00:05]}  Rf6 {[%clk 0:00:01]} 62. Qh8+ {[%clk 0:00:05]}  Kg6 {[%clk 0:00:02]} 63. Qxf6+ {[%clk 0:00:05]}  Kxf6 {[%clk 0:00:02]} 64. Qh8+ {[%clk 0:00:05]}  Kg6 {[%clk 0:00:03]} 65. h3 {[%clk 0:00:05]}  Kf7 {[%clk 0:00:04]} 66. hxg4 {[%clk 0:00:05]}  Kg6 {[%clk 0:00:05]} 67. Qh5+ {[%clk 0:00:06]}  Kf6 {[%clk 0:00:06]} 68. Qh6+ {[%clk 0:00:06]}  Kf7 {[%clk 0:00:06]} 69. Qxg5 {[%clk 0:00:06]}  Ke6 {[%clk 0:00:07]} 70. Qf5+ {[%clk 0:00:06]}  Kd6 {[%clk 0:00:08]} 71. g5 {[%clk 0:00:07]}  Ke7 {[%clk 0:00:08]} 72. Qf6+ {[%clk 0:00:07]}  Kd7 {[%clk 0:00:08]} 73. Kf3 {[%clk 0:00:07]}  Ke8 {[%clk 0:00:09]} 74. Qg7 {[%clk 0:00:07]}  Kd8 {[%clk 0:00:09]} 75. Qf7 {[%clk 0:00:08]}  Kc8 {[%clk 0:00:10]} 76. Qe7 {[%clk 0:00:09]}  Kb8 {[%clk 0:00:10]} 77. Qd7 {[%clk 0:00:10]}  Ka8 {[%clk 0:00:10]} 78. Ke4 {[%clk 0:00:10]}  Kb8 {[%clk 0:00:11]} 79. Kd5 {[%clk 0:00:11]}  Ka8 {[%clk 0:00:12]} 80. Kc6 {[%clk 0:00:12]}  Kb8 {[%clk 0:00:13]} 81. Qb7# {[%clk 0:00:12]} 1-0


[Site "https://www.chess.com"]

[Event "Titled Tuesday Blitz October 31 Late 2023"]
[White "Rastbod, Ali"]
[Black "Cordova, Emilio"]
[WhiteFideId "12567477"]
[BlackFideId "3801497"]
[WhiteElo "2747"]
[BlackElo "2930"]
[Result "1-0"]
[Round "4"]
[TimeControl "180+1"]
[Date "2023.10.31"]
[WhiteClock "0:00:06"]
[BlackClock "0:01:21"]
[Board "17"]

1. Nf3 {[%clk 0:02:53]}  b6 {[%clk 0:02:58]} 2. e4 {[%clk 0:02:53]}  Bb7 {[%clk 0:02:59]} 3. Nc3 {[%clk 0:02:54]}  e6 {[%clk 0:02:58]} 4. d4 {[%clk 0:02:54]}  Bb4 {[%clk 0:02:57]} 5. Bd3 {[%clk 0:02:55]}  Nf6 {[%clk 0:02:57]} 6. Nd2 {[%clk 0:02:55]}  c5 {[%clk 0:02:55]} 7. a3 {[%clk 0:02:54]}  cxd4 {[%clk 0:02:54]} 8. axb4 {[%clk 0:02:53]}  dxc3 {[%clk 0:02:55]} 9. bxc3 {[%clk 0:02:54]}  O-O {[%clk 0:02:54]} 10. e5 {[%clk 0:02:50]}  Ne8 {[%clk 0:02:53]} 11. Ne4 {[%clk 0:02:41]}  f5 {[%clk 0:02:48]} 12. exf6 {[%clk 0:02:39]}  Nxf6 {[%clk 0:02:47]} 13. Bg5 {[%clk 0:02:32]}  Nc6 {[%clk 0:02:36]} 14. f4 {[%clk 0:01:28]}  Qe8 {[%clk 0:02:31]} 15. Nd6 {[%clk 0:01:13]}  Qb8 {[%clk 0:02:26]} 16. O-O {[%clk 0:01:13]}  Ne7 {[%clk 0:02:23]} 17. c4 {[%clk 0:01:04]}  Qc7 {[%clk 0:02:07]} 18. Nxb7 {[%clk 0:00:55]}  Qxb7 {[%clk 0:02:07]} 19. Qe2 {[%clk 0:00:55]}  a5 {[%clk 0:02:02]} 20. Rab1 {[%clk 0:00:35]}  Qc7 {[%clk 0:01:56]} 21. Qe5 {[%clk 0:00:32]}  Qa7 {[%clk 0:01:50]} 22. Ra1 {[%clk 0:00:26]}  Nc6 {[%clk 0:01:50]} 23. Qe2 {[%clk 0:00:16]}  Nxb4 {[%clk 0:01:49]} 24. Bxf6 {[%clk 0:00:16]}  Rxf6 {[%clk 0:01:48]} 25. Be4 {[%clk 0:00:14]}  Rc8 {[%clk 0:01:48]} 26. c3 {[%clk 0:00:10]}  Na6 {[%clk 0:01:45]} 27. f5 {[%clk 0:00:11]}  Rxc4 {[%clk 0:01:37]} 28. Qxc4 {[%clk 0:00:09]}  b5+ {[%clk 0:01:37]} 29. Qd4 {[%clk 0:00:09]}  Qxd4+ {[%clk 0:01:37]} 30. cxd4 {[%clk 0:00:10]}  a4 {[%clk 0:01:36]} 31. fxe6 {[%clk 0:00:10]}  dxe6 {[%clk 0:01:35]} 32. Rxf6 {[%clk 0:00:10]}  gxf6 {[%clk 0:01:35]} 33. Bc6 {[%clk 0:00:10]}  Nc7 {[%clk 0:01:35]} 34. Rb1 {[%clk 0:00:07]}  a3 {[%clk 0:01:35]} 35. Kf2 {[%clk 0:00:05]}  Kf7 {[%clk 0:01:33]} 36. Rb3 {[%clk 0:00:04]}  Ke7 {[%clk 0:01:22]} 37. Rxa3 {[%clk 0:00:05]}  Kd6 {[%clk 0:01:23]} 38. Be4 {[%clk 0:00:05]}  f5 {[%clk 0:01:23]} 39. Bf3 {[%clk 0:00:05]}  b4 {[%clk 0:01:22]} 40. Rb3 {[%clk 0:00:04]}  Na6 {[%clk 0:01:22]} 41. Be2 {[%clk 0:00:05]}  Nc7 {[%clk 0:01:22]} 42. Rxb4 {[%clk 0:00:04]}  Nd5 {[%clk 0:01:22]} 43. Ra4 {[%clk 0:00:05]}  Nc3 {[%clk 0:01:22]} 44. Ra6+ {[%clk 0:00:04]}  Kd5 {[%clk 0:01:22]} 45. Bf3+ {[%clk 0:00:05]}  Kxd4 {[%clk 0:01:22]} 46. Rxe6 {[%clk 0:00:06]}  f4 {[%clk 0:01:22]} 47. Re7 {[%clk 0:00:06]}  Kd3 {[%clk 0:01:22]} 48. Rd7+ {[%clk 0:00:06]}  Kc4 {[%clk 0:01:21]} 49. Rxh7 {[%clk 0:00:06]} 1-0


[Site "https://www.chess.com"]

[Event "Titled Tuesday Blitz October 31 Late 2023"]
[White "Grigoriants, Sergey"]
[Black "Gedajlovic, Max"]
[WhiteFideId "4130804"]
[BlackFideId "2616840"]
[WhiteElo "2895"]
[BlackElo "2736"]
[Result "1/2-1/2"]
[Round "4"]
[TimeControl "180+1"]
[Date "2023.10.31"]
[WhiteClock "0:01:02"]
[BlackClock "0:00:23"]
[Board "18"]

1. d4 {[%clk 0:02:55]}  Nf6 {[%clk 0:02:58]} 2. c4 {[%clk 0:02:54]}  e6 {[%clk 0:02:58]} 3. Nc3 {[%clk 0:02:53]}  Bb4 {[%clk 0:02:56]} 4. e3 {[%clk 0:02:53]}  O-O {[%clk 0:02:56]} 5. Bd3 {[%clk 0:02:53]}  d5 {[%clk 0:02:56]} 6. Ne2 {[%clk 0:02:50]}  c5 {[%clk 0:02:53]} 7. cxd5 {[%clk 0:02:49]}  cxd4 {[%clk 0:02:52]} 8. exd4 {[%clk 0:02:48]}  Nxd5 {[%clk 0:02:51]} 9. Qc2 {[%clk 0:02:44]}  h6 {[%clk 0:02:44]} 10. O-O {[%clk 0:02:44]}  Nc6 {[%clk 0:02:44]} 11. a3 {[%clk 0:02:43]}  Bd6 {[%clk 0:02:43]} 12. Rd1 {[%clk 0:02:34]}  Bd7 {[%clk 0:02:29]} 13. Ng3 {[%clk 0:02:32]}  Rc8 {[%clk 0:02:24]} 14. Qe2 {[%clk 0:02:32]}  Qh4 {[%clk 0:02:18]} 15. Be4 {[%clk 0:02:23]}  Nce7 {[%clk 0:02:11]} 16. Bd2 {[%clk 0:02:20]}  Bc6 {[%clk 0:02:08]} 17. Bf3 {[%clk 0:02:07]}  Nxc3 {[%clk 0:02:01]} 18. bxc3 {[%clk 0:02:04]}  Bxf3 {[%clk 0:02:01]} 19. Qxf3 {[%clk 0:02:04]}  Nd5 {[%clk 0:02:00]} 20. h3 {[%clk 0:01:59]}  Bxg3 {[%clk 0:01:32]} 21. fxg3 {[%clk 0:01:58]}  Qf6 {[%clk 0:01:30]} 22. Qd3 {[%clk 0:01:54]}  Qf5 {[%clk 0:01:27]} 23. Qb5 {[%clk 0:01:33]}  Nxc3 {[%clk 0:01:17]} 24. Qxf5 {[%clk 0:01:28]}  exf5 {[%clk 0:01:18]} 25. Bxc3 {[%clk 0:01:25]}  Rxc3 {[%clk 0:01:19]} 26. Kh2 {[%clk 0:01:22]}  Rd8 {[%clk 0:01:17]} 27. Rd2 {[%clk 0:01:15]}  Rd5 {[%clk 0:01:16]} 28. a4 {[%clk 0:01:13]}  Rc4 {[%clk 0:01:12]} 29. Rb2 {[%clk 0:01:11]}  b6 {[%clk 0:01:04]} 30. a5 {[%clk 0:01:08]}  bxa5 {[%clk 0:01:00]} 31. Rb8+ {[%clk 0:01:08]}  Kh7 {[%clk 0:01:00]} 32. Rb7 {[%clk 0:01:09]}  a6 {[%clk 0:00:38]} 33. Rxf7 {[%clk 0:01:08]}  Rcxd4 {[%clk 0:00:36]} 34. Ra7 {[%clk 0:01:08]}  Rd2 {[%clk 0:00:31]} 35. Rxa6 {[%clk 0:01:07]}  Rb2 {[%clk 0:00:25]} 36. R6xa5 {[%clk 0:01:04]}  Rdd2 {[%clk 0:00:25]} 37. Rg1 {[%clk 0:01:03]}  Kg6 {[%clk 0:00:25]} 38. Raa1 {[%clk 0:01:02]}  Kg5 {[%clk 0:00:24]} 39. Rad1 {[%clk 0:01:01]}  Re2 {[%clk 0:00:22]} 40. Rde1 {[%clk 0:01:01]}  Red2 {[%clk 0:00:22]} 41. Rd1 {[%clk 0:01:01]}  Re2 {[%clk 0:00:22]} 42. Rde1 {[%clk 0:01:02]}  Red2 {[%clk 0:00:23]} 43. Rd1 {[%clk 0:01:02]} 1/2-1/2


[Site "https://www.chess.com"]